[Event "Titled Tuesday Blitz June 21 Early 2022"]
[White "Malyi, Viacheslav"]
[Black "Estrada Nieto, Julian"]
[WhiteFideId "14123983"]
[BlackFideId "5101018"]
[WhiteElo "2270"]
[BlackElo "2252"]
[Result "1-0"]
[Round "04"]
[TimeControl "180+1"]
[Date "2022.06.21"]
[WhiteClock "0:00:13"]
[BlackClock "0:00:04"]

1. d4 {[%clk 0:03:00]}  d5 {[%clk 0:03:00]} 2. Bg5 {[%clk 0:02:53]}  h6 {[%clk 0:02:59]} 3. Bh4 {[%clk 0:02:52]}  c6 {[%clk 0:03:00]} 4. e3 {[%clk 0:02:48]}  Qb6 {[%clk 0:03:00]} 5. b3 {[%clk 0:02:49]}  e5 {[%clk 0:02:59]} 6. Nf3 {[%clk 0:02:48]}  e4 {[%clk 0:02:58]} 7. Nfd2 {[%clk 0:02:47]}  Ne7 {[%clk 0:02:55]} 8. Be2 {[%clk 0:02:42]}  Nf5 {[%clk 0:02:55]} 9. Bg3 {[%clk 0:02:41]}  Be6 {[%clk 0:02:48]} 10. c4 {[%clk 0:02:35]}  Nd7 {[%clk 0:02:45]} 11. Nc3 {[%clk 0:02:32]}  Bb4 {[%clk 0:02:29]} 12. Qc2 {[%clk 0:02:30]}  Qa5 {[%clk 0:02:28]} 13. Ndb1 {[%clk 0:02:27]}  O-O {[%clk 0:02:18]} 14. a3 {[%clk 0:02:26]}  Nxg3 {[%clk 0:02:11]} 15. hxg3 {[%clk 0:02:26]}  f5 {[%clk 0:02:01]} 16. Ra2 {[%clk 0:02:24]}  Be7 {[%clk 0:01:59]} 17. b4 {[%clk 0:02:14]}  Qd8 {[%clk 0:01:52]} 18. Na4 {[%clk 0:02:13]}  Nf6 {[%clk 0:01:38]} 19. Nc5 {[%clk 0:02:07]}  Bxc5 {[%clk 0:01:37]} 20. bxc5 {[%clk 0:02:03]}  Kh8 {[%clk 0:01:31]} 21. cxd5 {[%clk 0:01:58]}  Nxd5 {[%clk 0:01:21]} 22. Rb2 {[%clk 0:01:48]}  Qc7 {[%clk 0:01:17]} 23. Nc3 {[%clk 0:01:39]}  Nxc3 {[%clk 0:01:10]} 24. Qxc3 {[%clk 0:01:39]}  b5 {[%clk 0:01:03]} 25. cxb6 {[%clk 0:01:30]}  axb6 {[%clk 0:01:03]} 26. O-O {[%clk 0:01:29]}  Rfc8 {[%clk 0:00:48]} 27. Rc1 {[%clk 0:01:28]}  Bd5 {[%clk 0:00:46]} 28. Rcb1 {[%clk 0:01:22]}  b5 {[%clk 0:00:34]} 29. Rc1 {[%clk 0:01:14]}  Qa5 {[%clk 0:00:33]} 30. Qxa5 {[%clk 0:01:00]}  Rxa5 {[%clk 0:00:33]} 31. Rxb5 {[%clk 0:01:00]}  Rxb5 {[%clk 0:00:28]} 32. Bxb5 {[%clk 0:00:59]}  Ra8 {[%clk 0:00:28]} 33. Bc4 {[%clk 0:00:46]}  Rxa3 {[%clk 0:00:23]} 34. Bxd5 {[%clk 0:00:45]}  cxd5 {[%clk 0:00:23]} 35. Rc5 {[%clk 0:00:39]}  Ra1+ {[%clk 0:00:23]} 36. Kh2 {[%clk 0:00:39]}  Ra2 {[%clk 0:00:23]} 37. Rxd5 {[%clk 0:00:34]}  Rxf2 {[%clk 0:00:23]} 38. Re5 {[%clk 0:00:34]}  Kg8 {[%clk 0:00:20]} 39. g4 {[%clk 0:00:30]}  fxg4 {[%clk 0:00:18]} 40. Rxe4 {[%clk 0:00:30]}  h5 {[%clk 0:00:18]} 41. Kg3 {[%clk 0:00:26]}  Rd2 {[%clk 0:00:17]} 42. Re5 {[%clk 0:00:24]}  g6 {[%clk 0:00:17]} 43. Re7 {[%clk 0:00:25]}  Kf8 {[%clk 0:00:16]} 44. Re5 {[%clk 0:00:23]}  Kf7 {[%clk 0:00:16]} 45. d5 {[%clk 0:00:23]}  Kf6 {[%clk 0:00:15]} 46. Re6+ {[%clk 0:00:23]}  Kf7 {[%clk 0:00:15]} 47. e4 {[%clk 0:00:23]}  Rd3+ {[%clk 0:00:12]} 48. Kf4 {[%clk 0:00:23]}  Rd2 {[%clk 0:00:12]} 49. g3 {[%clk 0:00:22]}  Rd3 {[%clk 0:00:11]} 50. Ra6 {[%clk 0:00:17]}  Rf3+ {[%clk 0:00:09]} 51. Kg5 {[%clk 0:00:17]}  Rxg3 {[%clk 0:00:10]} 52. Ra7+ {[%clk 0:00:16]}  Ke8 {[%clk 0:00:10]} 53. e5 {[%clk 0:00:14]}  Rf3 {[%clk 0:00:09]} 54. e6 {[%clk 0:00:12]}  Rf5+ {[%clk 0:00:07]} 55. Kxg6 {[%clk 0:00:12]}  Rxd5 {[%clk 0:00:07]} 56. Kf6 {[%clk 0:00:13]}  Rd8 {[%clk 0:00:04]} 57. Rh7 {[%clk 0:00:13]} 1-0


[Site "https://www.chess.com"]

[Event "Titled Tuesday Blitz June 21 Early 2022"]
[White "Matyukov, Petr"]
[Black "Di Nicolantonio, Lucas"]
[WhiteFideId "4103688"]
[BlackFideId "680460"]
[WhiteElo "2278"]
[BlackElo "2381"]
[Result "1/2-1/2"]
[Round "04"]
[TimeControl "180+1"]
[Date "2022.06.21"]
[WhiteClock "0:00:19"]
[BlackClock "0:01:43"]

1. d4 {[%clk 0:03:00]}  Nf6 {[%clk 0:02:58]} 2. c4 {[%clk 0:03:01]}  e6 {[%clk 0:02:58]} 3. g3 {[%clk 0:03:01]}  c5 {[%clk 0:02:56]} 4. d5 {[%clk 0:02:59]}  exd5 {[%clk 0:02:57]} 5. cxd5 {[%clk 0:03:00]}  d6 {[%clk 0:02:58]} 6. Nc3 {[%clk 0:03:00]}  g6 {[%clk 0:02:59]} 7. Bg2 {[%clk 0:02:59]}  Bg7 {[%clk 0:02:59]} 8. Nf3 {[%clk 0:02:59]}  O-O {[%clk 0:02:59]} 9. O-O {[%clk 0:03:00]}  Re8 {[%clk 0:03:00]} 10. Nd2 {[%clk 0:02:58]}  Na6 {[%clk 0:02:59]} 11. a3 {[%clk 0:02:56]}  Rb8 {[%clk 0:02:59]} 12. a4 {[%clk 0:02:46]}  Nb4 {[%clk 0:02:58]} 13. Nc4 {[%clk 0:02:44]}  b6 {[%clk 0:02:57]} 14. Bf4 {[%clk 0:02:43]}  Bf8 {[%clk 0:02:50]} 15. Nb5 {[%clk 0:02:40]}  Nfxd5 {[%clk 0:02:46]} 16. Bxd5 {[%clk 0:02:38]}  Nxd5 {[%clk 0:02:47]} 17. Qxd5 {[%clk 0:02:37]}  Be6 {[%clk 0:02:45]} 18. Qd3 {[%clk 0:02:32]}  d5 {[%clk 0:02:40]} 19. Bxb8 {[%clk 0:02:29]}  Qxb8 {[%clk 0:02:41]} 20. Ne3 {[%clk 0:02:22]}  a6 {[%clk 0:02:41]} 21. Nxd5 {[%clk 0:02:21]}  Bxd5 {[%clk 0:02:39]} 22. Qxd5 {[%clk 0:02:21]}  axb5 {[%clk 0:02:40]} 23. axb5 {[%clk 0:02:21]}  Rxe2 {[%clk 0:02:41]} 24. Ra8 {[%clk 0:02:19]}  Qc7 {[%clk 0:02:40]} 25. Qd8 {[%clk 0:02:15]}  Qxd8 {[%clk 0:02:36]} 26. Rxd8 {[%clk 0:02:15]}  Kg7 {[%clk 0:02:35]} 27. Rb8 {[%clk 0:02:13]}  c4 {[%clk 0:02:33]} 28. Rxb6 {[%clk 0:02:12]}  Rxb2 {[%clk 0:02:34]} 29. Rc6 {[%clk 0:02:10]}  Rxb5 {[%clk 0:02:31]} 30. Rxc4 {[%clk 0:02:10]}  Rb2 {[%clk 0:02:32]} 31. h4 {[%clk 0:02:07]}  h5 {[%clk 0:02:32]} 32. Kg2 {[%clk 0:02:04]}  Bb4 {[%clk 0:02:29]} 33. Rd1 {[%clk 0:02:00]}  Ba5 {[%clk 0:02:29]} 34. Rf4 {[%clk 0:01:54]}  f5 {[%clk 0:02:27]} 35. Rd7+ {[%clk 0:01:52]}  Kh6 {[%clk 0:02:28]} 36. Rd3 {[%clk 0:01:35]}  Bb6 {[%clk 0:02:25]} 37. Rdf3 {[%clk 0:01:31]}  Ra2 {[%clk 0:02:22]} 38. Rb4 {[%clk 0:01:27]}  Bc5 {[%clk 0:02:19]} 39. Rb8 {[%clk 0:01:27]}  Kg7 {[%clk 0:02:06]} 40. Rb7+ {[%clk 0:01:24]}  Kh6 {[%clk 0:02:05]} 41. Rc7 {[%clk 0:01:24]}  Bd4 {[%clk 0:02:03]} 42. Rc6 {[%clk 0:01:23]}  Kg7 {[%clk 0:02:03]} 43. Rc4 {[%clk 0:01:11]}  Rd2 {[%clk 0:02:00]} 44. Kf1 {[%clk 0:00:56]}  Bb6 {[%clk 0:01:57]} 45. Ke1 {[%clk 0:00:55]}  Rb2 {[%clk 0:01:56]} 46. Rc6 {[%clk 0:00:48]}  Ba5+ {[%clk 0:01:54]} 47. Kf1 {[%clk 0:00:48]}  Bb6 {[%clk 0:01:53]} 48. Rf4 {[%clk 0:00:43]}  Rb1+ {[%clk 0:01:42]} 49. Kg2 {[%clk 0:00:40]}  Rb2 {[%clk 0:01:43]} 50. Kf1 {[%clk 0:00:22]}  Rb1+ {[%clk 0:01:43]} 51. Kg2 {[%clk 0:00:19]}  Rb2 {[%clk 0:01:43]} 52. Kf1 {[%clk 0:00:19]} 1/2-1/2


[Site "https://www.chess.com"]

[Event "Titled Tuesday Blitz June 21 Early 2022"]
[White "Mitrovic, Darko R"]
[Black "Nunez V, Gustavo Eduardo"]
[WhiteFideId "927023"]
[BlackFideId "4403690"]
[WhiteElo "2150"]
[BlackElo "2228"]
[Result "0-1"]
[Round "04"]
[TimeControl "180+1"]
[Date "2022.06.21"]
[WhiteClock "0:00:04"]
[BlackClock "0:00:53"]

1. d4 {[%clk 0:03:00]}  Nf6 {[%clk 0:02:59]} 2. c4 {[%clk 0:03:00]}  g6 {[%clk 0:02:59]} 3. Nc3 {[%clk 0:02:59]}  Bg7 {[%clk 0:02:59]} 4. e4 {[%clk 0:02:59]}  d6 {[%clk 0:03:00]} 5. f3 {[%clk 0:02:58]}  O-O {[%clk 0:03:01]} 6. Be3 {[%clk 0:02:58]}  c5 {[%clk 0:03:00]} 7. Nge2 {[%clk 0:02:51]}  cxd4 {[%clk 0:03:00]} 8. Nxd4 {[%clk 0:02:45]}  Nc6 {[%clk 0:03:01]} 9. Qd2 {[%clk 0:02:35]}  Nd7 {[%clk 0:02:59]} 10. Be2 {[%clk 0:02:32]}  Nxd4 {[%clk 0:02:56]} 11. Bxd4 {[%clk 0:02:31]}  Bxd4 {[%clk 0:02:56]} 12. Qxd4 {[%clk 0:02:31]}  Qb6 {[%clk 0:02:57]} 13. Qxb6 {[%clk 0:02:29]}  Nxb6 {[%clk 0:02:57]} 14. Kd2 {[%clk 0:02:17]}  Be6 {[%clk 0:02:56]} 15. b3 {[%clk 0:02:09]}  a5 {[%clk 0:02:56]} 16. Nd5 {[%clk 0:02:05]}  Bxd5 {[%clk 0:02:56]} 17. cxd5 {[%clk 0:02:05]}  Rfc8 {[%clk 0:02:53]} 18. Rhc1 {[%clk 0:02:04]}  Nd7 {[%clk 0:02:52]} 19. Rxc8+ {[%clk 0:02:00]}  Rxc8 {[%clk 0:02:53]} 20. Rc1 {[%clk 0:02:00]}  Nc5 {[%clk 0:02:40]} 21. Bb5 {[%clk 0:01:47]}  Kg7 {[%clk 0:02:34]} 22. Rc3 {[%clk 0:01:45]}  e6 {[%clk 0:02:15]} 23. dxe6 {[%clk 0:01:41]}  fxe6 {[%clk 0:02:16]} 24. Ke3 {[%clk 0:01:04]}  e5 {[%clk 0:02:12]} 25. Rc1 {[%clk 0:00:47]}  Kf6 {[%clk 0:02:09]} 26. Rd1 {[%clk 0:00:42]}  Ke7 {[%clk 0:02:08]} 27. Bc4 {[%clk 0:00:38]}  a4 {[%clk 0:02:01]} 28. Bd5 {[%clk 0:00:31]}  b5 {[%clk 0:01:44]} 29. b4 {[%clk 0:00:23]}  Nd7 {[%clk 0:01:32]} 30. Kd2 {[%clk 0:00:16]}  Nb6 {[%clk 0:01:29]} 31. Rc1 {[%clk 0:00:12]}  Rxc1 {[%clk 0:01:19]} 32. Kxc1 {[%clk 0:00:11]}  Nxd5 {[%clk 0:01:18]} 33. exd5 {[%clk 0:00:11]}  Kf6 {[%clk 0:01:18]} 34. Kd2 {[%clk 0:00:11]}  Kf5 {[%clk 0:01:15]} 35. Ke3 {[%clk 0:00:10]}  h5 {[%clk 0:01:15]} 36. h4 {[%clk 0:00:08]}  g5 {[%clk 0:01:14]} 37. hxg5 {[%clk 0:00:08]}  Kxg5 {[%clk 0:01:15]} 38. g3 {[%clk 0:00:06]}  Kf5 {[%clk 0:01:12]} 39. a3 {[%clk 0:00:05]}  Kg5 {[%clk 0:01:04]} 40. Ke4 {[%clk 0:00:05]}  Kf6 {[%clk 0:00:57]} 41. f4 {[%clk 0:00:05]}  exf4 {[%clk 0:00:56]} 42. Kxf4 {[%clk 0:00:06]}  Kg6 {[%clk 0:00:57]} 43. Ke4 {[%clk 0:00:04]}  Kg5 {[%clk 0:00:56]} 44. Kf3 {[%clk 0:00:04]}  Kf5 {[%clk 0:00:56]} 45. Ke3 {[%clk 0:00:04]}  Ke5 {[%clk 0:00:56]} 46. Kf3 {[%clk 0:00:04]}  Kxd5 {[%clk 0:00:56]} 47. Kf4 {[%clk 0:00:04]}  Kc4 {[%clk 0:00:49]} 48. Kg5 {[%clk 0:00:04]}  d5 {[%clk 0:00:50]} 49. Kxh5 {[%clk 0:00:04]}  d4 {[%clk 0:00:51]} 50. g4 {[%clk 0:00:04]}  d3 {[%clk 0:00:51]} 51. g5 {[%clk 0:00:04]}  d2 {[%clk 0:00:52]} 52. g6 {[%clk 0:00:04]}  d1=Q+ {[%clk 0:00:53]} 0-1


[Site "https://www.chess.com"]

[Event "Titled Tuesday Blitz June 21 Early 2022"]
[White "Mortazavi, Ali"]
[Black "Hamidi, Amir Mohammad"]
[WhiteFideId "401323"]
[BlackFideId "12563285"]
[WhiteElo "2515"]
[BlackElo "2724"]
[Result "1/2-1/2"]
[Round "04"]
[TimeControl "180+1"]
[Date "2022.06.21"]
[WhiteClock "0:00:14"]
[BlackClock "0:00:19"]

1. Nf3 {[%clk 0:03:00]}  g5 {[%clk 0:02:58]} 2. Nxg5 {[%clk 0:02:57]}  e5 {[%clk 0:02:58]} 3. d4 {[%clk 0:02:46]}  h6 {[%clk 0:02:57]} 4. Ne4 {[%clk 0:02:45]}  d5 {[%clk 0:02:56]} 5. Ng3 {[%clk 0:02:45]}  e4 {[%clk 0:02:56]} 6. c4 {[%clk 0:02:44]}  c6 {[%clk 0:02:56]} 7. Nc3 {[%clk 0:02:44]}  Nf6 {[%clk 0:02:57]} 8. Bf4 {[%clk 0:02:30]}  Qb6 {[%clk 0:02:51]} 9. Qb3 {[%clk 0:02:22]}  Be6 {[%clk 0:02:41]} 10. c5 {[%clk 0:02:19]}  Qxb3 {[%clk 0:02:36]} 11. axb3 {[%clk 0:02:19]}  Na6 {[%clk 0:02:29]} 12. e3 {[%clk 0:02:07]}  Nb4 {[%clk 0:02:25]} 13. Kd2 {[%clk 0:02:05]}  Ng4 {[%clk 0:02:22]} 14. Nd1 {[%clk 0:01:50]}  Kd7 {[%clk 0:02:19]} 15. h3 {[%clk 0:01:41]}  Nf6 {[%clk 0:02:18]} 16. Ra4 {[%clk 0:01:38]}  a5 {[%clk 0:02:17]} 17. Be2 {[%clk 0:01:38]}  Be7 {[%clk 0:02:13]} 18. Nc3 {[%clk 0:01:34]}  h5 {[%clk 0:02:10]} 19. h4 {[%clk 0:01:26]}  Ng4 {[%clk 0:02:07]} 20. f3 {[%clk 0:01:23]}  exf3 {[%clk 0:02:05]} 21. gxf3 {[%clk 0:01:22]}  Nf6 {[%clk 0:02:01]} 22. Bg5 {[%clk 0:01:11]}  Ng8 {[%clk 0:01:57]} 23. Bxe7 {[%clk 0:00:53]}  Nxe7 {[%clk 0:01:58]} 24. f4 {[%clk 0:00:52]}  Rag8 {[%clk 0:01:55]} 25. Nxh5 {[%clk 0:00:51]}  Rg2 {[%clk 0:01:55]} 26. Nf6+ {[%clk 0:00:51]}  Kc7 {[%clk 0:01:50]} 27. h5 {[%clk 0:00:46]}  Nf5 {[%clk 0:01:45]} 28. Raa1 {[%clk 0:00:45]}  Rh6 {[%clk 0:01:12]} 29. Ng4 {[%clk 0:00:42]}  Rh8 {[%clk 0:01:05]} 30. h6 {[%clk 0:00:31]}  Ng3 {[%clk 0:01:01]} 31. Rhg1 {[%clk 0:00:28]}  Rxg1 {[%clk 0:00:59]} 32. Rxg1 {[%clk 0:00:27]}  Nxe2 {[%clk 0:00:58]} 33. Nxe2 {[%clk 0:00:27]}  Bxg4 {[%clk 0:00:58]} 34. Rxg4 {[%clk 0:00:28]}  Rxh6 {[%clk 0:00:59]} 35. Rg7 {[%clk 0:00:28]}  Rf6 {[%clk 0:00:55]} 36. Ng3 {[%clk 0:00:27]}  Kd7 {[%clk 0:00:53]} 37. Rg8 {[%clk 0:00:25]}  Rg6 {[%clk 0:00:52]} 38. Rxg6 {[%clk 0:00:24]}  fxg6 {[%clk 0:00:53]} 39. f5 {[%clk 0:00:19]}  gxf5 {[%clk 0:00:52]} 40. Nxf5 {[%clk 0:00:20]}  Ke6 {[%clk 0:00:49]} 41. Nd6 {[%clk 0:00:20]}  b5 {[%clk 0:00:36]} 42. Nb7 {[%clk 0:00:18]}  Kd7 {[%clk 0:00:32]} 43. Nxa5 {[%clk 0:00:17]}  Kc7 {[%clk 0:00:31]} 44. Kc3 {[%clk 0:00:16]}  Na2+ {[%clk 0:00:31]} 45. Kd3 {[%clk 0:00:15]}  Nb4+ {[%clk 0:00:32]} 46. Kc3 {[%clk 0:00:15]}  Na2+ {[%clk 0:00:33]} 47. Kd2 {[%clk 0:00:16]}  Nb4 {[%clk 0:00:32]} 48. Ke2 {[%clk 0:00:16]}  Kb8 {[%clk 0:00:30]} 49. e4 {[%clk 0:00:16]}  dxe4 {[%clk 0:00:29]} 50. Ke3 {[%clk 0:00:17]}  Ka7 {[%clk 0:00:27]} 51. Kxe4 {[%clk 0:00:17]}  Ka6 {[%clk 0:00:27]} 52. Nxc6 {[%clk 0:00:17]}  Nxc6 {[%clk 0:00:28]} 53. d5 {[%clk 0:00:17]}  Na5 {[%clk 0:00:27]} 54. b4 {[%clk 0:00:16]}  Nc4 {[%clk 0:00:27]} 55. d6 {[%clk 0:00:16]}  Kb7 {[%clk 0:00:27]} 56. Kd5 {[%clk 0:00:16]}  Ne3+ {[%clk 0:00:26]} 57. Ke6 {[%clk 0:00:16]}  Kc8 {[%clk 0:00:12]} 58. c6 {[%clk 0:00:16]}  Kd8 {[%clk 0:00:08]} 59. b3 {[%clk 0:00:15]}  Ng4 {[%clk 0:00:07]} 60. c7+ {[%clk 0:00:14]}  Kc8 {[%clk 0:00:08]} 61. Ke7 {[%clk 0:00:15]}  Ne5 {[%clk 0:00:08]} 62. Ke6 {[%clk 0:00:13]}  Nd3 {[%clk 0:00:08]} 63. Ke7 {[%clk 0:00:11]}  Ne5 {[%clk 0:00:08]} 64. Ke8 {[%clk 0:00:11]}  Nd7 {[%clk 0:00:08]} 65. Ke7 {[%clk 0:00:11]}  Nb6 {[%clk 0:00:09]} 66. Ke6 {[%clk 0:00:11]}  Nd7 {[%clk 0:00:10]} 67. Kd5 {[%clk 0:00:11]}  Kb7 {[%clk 0:00:09]} 68. Kd4 {[%clk 0:00:09]}  Nb6 {[%clk 0:00:08]} 69. Kc5 {[%clk 0:00:09]}  Nd7+ {[%clk 0:00:06]} 70. Kxb5 {[%clk 0:00:10]}  Ne5 {[%clk 0:00:06]} 71. Kc5 {[%clk 0:00:10]}  Nd7+ {[%clk 0:00:07]} 72. Kd5 {[%clk 0:00:10]}  Nb6+ {[%clk 0:00:08]} 73. Ke6 {[%clk 0:00:09]}  Kc8 {[%clk 0:00:09]} 74. b5 {[%clk 0:00:10]}  Nd7 {[%clk 0:00:10]} 75. b4 {[%clk 0:00:10]}  Nb6 {[%clk 0:00:10]} 76. Ke5 {[%clk 0:00:10]}  Kd7 {[%clk 0:00:11]} 77. c8=Q+ {[%clk 0:00:08]}  Nxc8 {[%clk 0:00:11]} 78. Kd5 {[%clk 0:00:09]}  Nxd6 {[%clk 0:00:12]} 79. Kc5 {[%clk 0:00:10]}  Kc7 {[%clk 0:00:12]} 80. b6+ {[%clk 0:00:09]}  Kb7 {[%clk 0:00:13]} 81. b5 {[%clk 0:00:08]}  Nxb5 {[%clk 0:00:12]} 82. Kxb5 {[%clk 0:00:08]}  Kb8 {[%clk 0:00:13]} 83. Kb4 {[%clk 0:00:09]}  Kb7 {[%clk 0:00:14]} 84. Kc5 {[%clk 0:00:09]}  Kb8 {[%clk 0:00:14]} 85. Kb5 {[%clk 0:00:10]}  Kb7 {[%clk 0:00:15]} 86. Ka5 {[%clk 0:00:11]}  Kb8 {[%clk 0:00:16]} 87. Ka6 {[%clk 0:00:11]}  Ka8 {[%clk 0:00:16]} 88. Kb5 {[%clk 0:00:12]}  Kb7 {[%clk 0:00:17]} 89. Kc5 {[%clk 0:00:12]}  Kb8 {[%clk 0:00:18]} 90. Kd6 {[%clk 0:00:13]}  Kb7 {[%clk 0:00:19]} 91. Kc5 {[%clk 0:00:14]} 1/2-1/2


[Site "https://www.chess.com"]

[Event "Titled Tuesday Blitz June 21 Early 2022"]
[White "Nguyen, Quoc Hy"]
[Black "Horak, Martin"]
[WhiteFideId "12410853"]
[BlackFideId "367095"]
[WhiteElo "1938"]
[BlackElo "1997"]
[Result "1-0"]
[Round "04"]
[TimeControl "180+1"]
[Date "2022.06.21"]
[WhiteClock "0:00:08"]
[BlackClock "0:00:11"]

1. c4 {[%clk 0:03:00]}  e5 {[%clk 0:02:43]} 2. d4 {[%clk 0:02:58]}  exd4 {[%clk 0:02:43]} 3. Nf3 {[%clk 0:02:57]}  c5 {[%clk 0:02:42]} 4. e3 {[%clk 0:02:57]}  dxe3 {[%clk 0:02:41]} 5. Bxe3 {[%clk 0:02:57]}  Nc6 {[%clk 0:02:40]} 6. Nc3 {[%clk 0:02:53]}  Nf6 {[%clk 0:02:38]} 7. Nd5 {[%clk 0:02:39]}  d6 {[%clk 0:02:33]} 8. Be2 {[%clk 0:02:20]}  Nxd5 {[%clk 0:02:18]} 9. cxd5 {[%clk 0:02:20]}  Ne7 {[%clk 0:02:16]} 10. O-O {[%clk 0:02:20]}  Nf5 {[%clk 0:02:09]} 11. Bb5+ {[%clk 0:01:25]}  Bd7 {[%clk 0:02:09]} 12. Qd3 {[%clk 0:01:18]}  Bxb5 {[%clk 0:02:05]} 13. Qxb5+ {[%clk 0:01:10]}  Qd7 {[%clk 0:02:05]} 14. Qd3 {[%clk 0:01:08]}  Be7 {[%clk 0:01:59]} 15. Bg5 {[%clk 0:01:08]}  O-O {[%clk 0:01:49]} 16. Rfe1 {[%clk 0:01:05]}  Bxg5 {[%clk 0:01:47]} 17. Nxg5 {[%clk 0:01:06]}  h6 {[%clk 0:01:45]} 18. Ne4 {[%clk 0:00:52]}  Rfe8 {[%clk 0:01:44]} 19. Qh3 {[%clk 0:00:49]}  Rad8 {[%clk 0:01:27]} 20. Rad1 {[%clk 0:00:45]}  Kf8 {[%clk 0:01:13]} 21. g4 {[%clk 0:00:31]}  Nd4 {[%clk 0:01:11]} 22. Qg3 {[%clk 0:00:24]}  f5 {[%clk 0:00:57]} 23. Nc3 {[%clk 0:00:23]}  fxg4 {[%clk 0:00:52]} 24. Kg2 {[%clk 0:00:23]}  Kg8 {[%clk 0:00:47]} 25. Re4 {[%clk 0:00:18]}  Rxe4 {[%clk 0:00:46]} 26. Nxe4 {[%clk 0:00:19]}  Qf5 {[%clk 0:00:42]} 27. Re1 {[%clk 0:00:15]}  Re8 {[%clk 0:00:40]} 28. Nxd6 {[%clk 0:00:15]}  Qf3+ {[%clk 0:00:40]} 29. Qxf3 {[%clk 0:00:14]}  gxf3+ {[%clk 0:00:38]} 30. Kf1 {[%clk 0:00:14]}  Rd8 {[%clk 0:00:34]} 31. Nxb7 {[%clk 0:00:07]}  Rxd5 {[%clk 0:00:33]} 32. Re8+ {[%clk 0:00:06]}  Kf7 {[%clk 0:00:30]} 33. Ra8 {[%clk 0:00:07]}  Rh5 {[%clk 0:00:30]} 34. Rxa7 {[%clk 0:00:07]}  Kg8 {[%clk 0:00:25]} 35. Ke1 {[%clk 0:00:05]}  Rxh2 {[%clk 0:00:25]} 36. Nxc5 {[%clk 0:00:06]}  h5 {[%clk 0:00:18]} 37. a4 {[%clk 0:00:06]}  h4 {[%clk 0:00:18]} 38. Rd7 {[%clk 0:00:06]}  Nc6 {[%clk 0:00:12]} 39. Rd6 {[%clk 0:00:05]}  Nb4 {[%clk 0:00:12]} 40. Rb6 {[%clk 0:00:04]}  Nc2+ {[%clk 0:00:11]} 41. Kd2 {[%clk 0:00:04]}  Nd4 {[%clk 0:00:12]} 42. Rd6 {[%clk 0:00:04]}  Ne2 {[%clk 0:00:09]} 43. Rd8+ {[%clk 0:00:04]}  Kh7 {[%clk 0:00:09]} 44. Ke3 {[%clk 0:00:05]}  Rh1 {[%clk 0:00:09]} 45. Kxf3 {[%clk 0:00:05]}  Ra1 {[%clk 0:00:10]} 46. Kxe2 {[%clk 0:00:05]}  Ra2 {[%clk 0:00:10]} 47. Rd3 {[%clk 0:00:05]}  Rxb2+ {[%clk 0:00:10]} 48. Kf1 {[%clk 0:00:06]}  Ra2 {[%clk 0:00:10]} 49. Rh3 {[%clk 0:00:05]}  g5 {[%clk 0:00:10]} 50. Ne4 {[%clk 0:00:06]}  Kg6 {[%clk 0:00:10]} 51. Nc3 {[%clk 0:00:06]}  Ra3 {[%clk 0:00:10]} 52. Kg2 {[%clk 0:00:07]}  g4 {[%clk 0:00:10]} 53. Re3 {[%clk 0:00:07]}  Kg5 {[%clk 0:00:10]} 54. Ne4+ {[%clk 0:00:07]}  Kf4 {[%clk 0:00:10]} 55. Rxa3 {[%clk 0:00:07]}  h3+ {[%clk 0:00:10]} 56. Kh2 {[%clk 0:00:07]}  Kxe4 {[%clk 0:00:11]} 57. a5 {[%clk 0:00:08]} 1-0


[Site "https://www.chess.com"]

[Event "Titled Tuesday Blitz June 21 Early 2022"]
[White "Pappelis, Dimitrios"]
[Black "Ferreira, Vitor Hugo Vieira"]
[WhiteFideId "4215281"]
[BlackFideId "2119765"]
[WhiteElo "1998"]
[BlackElo "2165"]
[Result "0-1"]
[Round "04"]
[TimeControl "180+1"]
[Date "2022.06.21"]
[WhiteClock "0:00:45"]
[BlackClock "0:01:37"]

1. Nf3 {[%clk 0:03:00]}  Nf6 {[%clk 0:02:59]} 2. c4 {[%clk 0:02:59]}  c6 {[%clk 0:02:20]} 3. Nc3 {[%clk 0:02:57]}  d5 {[%clk 0:02:19]} 4. cxd5 {[%clk 0:02:58]}  cxd5 {[%clk 0:02:19]} 5. d4 {[%clk 0:02:59]}  Nc6 {[%clk 0:02:19]} 6. Bf4 {[%clk 0:02:58]}  Bf5 {[%clk 0:02:19]} 7. e3 {[%clk 0:02:55]}  a6 {[%clk 0:02:19]} 8. h3 {[%clk 0:02:51]}  h6 {[%clk 0:02:19]} 9. Bd3 {[%clk 0:02:51]}  Bxd3 {[%clk 0:02:16]} 10. Qxd3 {[%clk 0:02:52]}  e6 {[%clk 0:02:16]} 11. O-O {[%clk 0:02:49]}  Bd6 {[%clk 0:02:16]} 12. Bxd6 {[%clk 0:02:41]}  Qxd6 {[%clk 0:02:17]} 13. Rac1 {[%clk 0:02:41]}  O-O {[%clk 0:02:17]} 14. a3 {[%clk 0:02:39]}  b5 {[%clk 0:02:16]} 15. b4 {[%clk 0:02:23]}  Nd7 {[%clk 0:02:16]} 16. Nd2 {[%clk 0:02:17]}  Nb6 {[%clk 0:02:16]} 17. Nb3 {[%clk 0:02:00]}  Nc4 {[%clk 0:02:16]} 18. Nc5 {[%clk 0:02:00]}  Rfb8 {[%clk 0:02:14]} 19. Ra1 {[%clk 0:01:50]}  a5 {[%clk 0:02:13]} 20. bxa5 {[%clk 0:01:42]}  Rxa5 {[%clk 0:02:13]} 21. Rfb1 {[%clk 0:01:41]}  Nxa3 {[%clk 0:02:09]} 22. Nxb5 {[%clk 0:01:27]}  Raxb5 {[%clk 0:02:03]} 23. Rxb5 {[%clk 0:01:14]}  Nxb5 {[%clk 0:01:59]} 24. Na6 {[%clk 0:01:09]}  Nb4 {[%clk 0:01:50]} 25. Nxb4 {[%clk 0:00:55]}  Qxb4 {[%clk 0:01:51]} 26. Rb1 {[%clk 0:00:54]}  Qc4 {[%clk 0:01:39]} 27. Qd1 {[%clk 0:00:45]}  Rb7 {[%clk 0:01:38]} 28. Rc1 {[%clk 0:00:45]}  Nc3 {[%clk 0:01:37]} 0-1


[Site "https://www.chess.com"]